[Event "December 12 Early 2023"]
[Site "https://www.chess.com"]
[Date "2023.12.12"]
[Round "6"]
[White "Yelisieiev, Yevhenii"]
[Black "Lagarde, Maxime"]
[Result "0-1"]
[Board "44"]
[TimeControl "180+1"]
[WhiteFideId "14139642"]
[BlackFideId "662399"]
[WhiteElo "2576"]
[BlackElo "2775"]
[WhiteTeam "GER"]
[BlackTeam "FRA"]
[WhiteClock "0:00:00"]
[BlackClock "0:00:50"]

1. d4 {[%clk 0:03:00]}  Nc6 {[%clk 0:02:55]} 2. Nf3 {[%clk 0:03:00]}  d6 {[%clk 0:02:55]} 3. d5 {[%clk 0:02:58]}  Ne5 {[%clk 0:02:55]} 4. Nxe5 {[%clk 0:02:58]}  dxe5 {[%clk 0:02:56]} 5. e4 {[%clk 0:02:59]}  Nf6 {[%clk 0:02:57]} 6. Bd3 {[%clk 0:02:58]}  e6 {[%clk 0:02:56]} 7. c4 {[%clk 0:02:58]}  Bc5 {[%clk 0:02:55]} 8. O-O {[%clk 0:02:57]}  h5 {[%clk 0:02:55]} 9. Nd2 {[%clk 0:02:45]}  exd5 {[%clk 0:02:46]} 10. exd5 {[%clk 0:02:41]}  Bg4 {[%clk 0:02:36]} 11. Qe1 {[%clk 0:02:33]}  Qe7 {[%clk 0:02:34]} 12. Nb3 {[%clk 0:02:29]}  Bb4 {[%clk 0:02:28]} 13. Qe3 {[%clk 0:02:21]}  b6 {[%clk 0:02:22]} 14. c5 {[%clk 0:02:06]}  Bxc5 {[%clk 0:02:20]} 15. Nxc5 {[%clk 0:02:06]}  bxc5 {[%clk 0:02:20]} 16. Bb5+ {[%clk 0:02:02]}  Kf8 {[%clk 0:02:20]} 17. Bc6 {[%clk 0:01:58]}  Rd8 {[%clk 0:02:18]} 18. h3 {[%clk 0:01:36]}  Bd7 {[%clk 0:02:16]} 19. Re1 {[%clk 0:01:28]}  Bxc6 {[%clk 0:02:05]} 20. dxc6 {[%clk 0:01:28]}  Rd5 {[%clk 0:02:05]} 21. b3 {[%clk 0:01:25]}  Rh6 {[%clk 0:02:00]} 22. Bb2 {[%clk 0:01:18]}  e4 {[%clk 0:01:57]} 23. Rac1 {[%clk 0:01:13]}  Rg6 {[%clk 0:01:52]} 24. Ba3 {[%clk 0:01:06]}  Kg8 {[%clk 0:01:49]} 25. Rxc5 {[%clk 0:01:03]}  Qe6 {[%clk 0:01:41]} 26. Rxd5 {[%clk 0:00:52]}  Qxd5 {[%clk 0:01:42]} 27. Qc5 {[%clk 0:00:48]}  e3 {[%clk 0:01:30]} 28. Qxd5 {[%clk 0:00:31]}  Nxd5 {[%clk 0:01:31]} 29. fxe3 {[%clk 0:00:19]}  Rxc6 {[%clk 0:01:30]} 30. e4 {[%clk 0:00:17]}  Nf4 {[%clk 0:01:29]} 31. Rf1 {[%clk 0:00:08]}  Ne6 {[%clk 0:01:24]} 32. Rc1 {[%clk 0:00:08]}  Ra6 {[%clk 0:01:21]} 33. Be7 {[%clk 0:00:04]}  Rxa2 {[%clk 0:01:21]} 34. Rc4 {[%clk 0:00:03]}  Rb2 {[%clk 0:01:04]} 35. b4 {[%clk 0:00:02]}  g5 {[%clk 0:00:54]} 36. g3 {[%clk 0:00:02]}  Kg7 {[%clk 0:00:52]} 37. h4 {[%clk 0:00:00]}  g4 {[%clk 0:00:50]} 0-1

[Event "December 12 Early 2023"]
[Site "https://www.chess.com"]
[Date "2023.12.12"]
[Round "6"]
[White "Ivic, Velimir"]
[Black "Vestby-Ellingsen, Mads"]
[Result "1-0"]
[Board "47"]
[TimeControl "180+1"]
[WhiteFideId "950122"]
[BlackFideId "1520857"]
[WhiteElo "2944"]
[BlackElo "2588"]
[WhiteTeam "SRB"]
[BlackTeam "NOR"]
[WhiteClock "0:00:22"]
[BlackClock "0:00:00"]

1. e4 {[%clk 0:02:55]}  e5 {[%clk 0:02:57]} 2. Nf3 {[%clk 0:02:55]}  Nc6 {[%clk 0:02:57]} 3. Bc4 {[%clk 0:02:56]}  Bc5 {[%clk 0:02:57]} 4. d3 {[%clk 0:02:55]}  Nf6 {[%clk 0:02:57]} 5. c3 {[%clk 0:02:55]}  a6 {[%clk 0:02:56]} 6. O-O {[%clk 0:02:54]}  h6 {[%clk 0:02:55]} 7. a4 {[%clk 0:02:54]}  Ba7 {[%clk 0:02:54]} 8. Re1 {[%clk 0:02:53]}  O-O {[%clk 0:02:52]} 9. Nbd2 {[%clk 0:02:52]}  d6 {[%clk 0:02:48]} 10. h3 {[%clk 0:02:50]}  Re8 {[%clk 0:02:46]} 11. b4 {[%clk 0:02:50]}  Be6 {[%clk 0:02:45]} 12. Bxe6 {[%clk 0:02:50]}  Rxe6 {[%clk 0:02:45]} 13. Qc2 {[%clk 0:02:51]}  Ne7 {[%clk 0:02:44]} 14. Nf1 {[%clk 0:02:33]}  Ng6 {[%clk 0:02:38]} 15. d4 {[%clk 0:02:28]}  Re8 {[%clk 0:02:30]} 16. Ng3 {[%clk 0:02:24]}  c6 {[%clk 0:02:23]} 17. Bb2 {[%clk 0:02:16]}  Qc7 {[%clk 0:02:21]} 18. c4 {[%clk 0:02:15]}  exd4 {[%clk 0:02:08]} 19. Nxd4 {[%clk 0:02:15]}  Nh7 {[%clk 0:02:05]} 20. Ndf5 {[%clk 0:02:12]}  f6 {[%clk 0:01:56]} 21. Nh5 {[%clk 0:02:12]}  Re7 {[%clk 0:01:41]} 22. Nxe7+ {[%clk 0:02:09]}  Qxe7 {[%clk 0:01:41]} 23. Rad1 {[%clk 0:02:07]}  Ng5 {[%clk 0:01:39]} 24. Ng3 {[%clk 0:02:06]}  Nh4 {[%clk 0:01:36]} 25. Qe2 {[%clk 0:01:57]}  Qe6 {[%clk 0:01:31]} 26. Qg4 {[%clk 0:01:02]}  Qxg4 {[%clk 0:01:24]} 27. hxg4 {[%clk 0:01:03]}  Nf7 {[%clk 0:01:10]} 28. Kf1 {[%clk 0:01:03]}  Bb6 {[%clk 0:01:07]} 29. f3 {[%clk 0:01:01]}  Bc7 {[%clk 0:01:03]} 30. Ne2 {[%clk 0:01:00]}  Ng6 {[%clk 0:01:01]} 31. c5 {[%clk 0:00:55]}  a5 {[%clk 0:00:58]} 32. b5 {[%clk 0:00:41]}  cxb5 {[%clk 0:00:51]} 33. axb5 {[%clk 0:00:41]}  dxc5 {[%clk 0:00:51]} 34. Rd7 {[%clk 0:00:42]}  Rc8 {[%clk 0:00:45]} 35. b6 {[%clk 0:00:43]}  Bxb6 {[%clk 0:00:45]} 36. Rxb7 {[%clk 0:00:43]}  Bc7 {[%clk 0:00:42]} 37. Rd1 {[%clk 0:00:44]}  Nge5 {[%clk 0:00:39]} 38. Nc3 {[%clk 0:00:35]}  c4 {[%clk 0:00:37]} 39. Nd5 {[%clk 0:00:32]}  Bd6 {[%clk 0:00:35]} 40. Bc3 {[%clk 0:00:30]}  a4 {[%clk 0:00:32]} 41. Nb6 {[%clk 0:00:30]}  Rc6 {[%clk 0:00:26]} 42. Nxa4 {[%clk 0:00:30]}  Nd3 {[%clk 0:00:26]} 43. Rb6 {[%clk 0:00:25]}  Rc8 {[%clk 0:00:24]} 44. Rdb1 {[%clk 0:00:23]}  Kh7 {[%clk 0:00:23]} 45. Nb2 {[%clk 0:00:22]}  Nde5 {[%clk 0:00:17]} 46. Rd1 {[%clk 0:00:21]}  Bc5 {[%clk 0:00:16]} 47. Rb5 {[%clk 0:00:22]}  Be3 {[%clk 0:00:14]} 48. Ke2 {[%clk 0:00:20]}  Ba7 {[%clk 0:00:11]} 49. Rb7 {[%clk 0:00:21]}  Bc5 {[%clk 0:00:01]} 50. f4 {[%clk 0:00:21]}  Nxg4 {[%clk 0:00:01]} 51. Rxf7 {[%clk 0:00:21]}  Kg8 {[%clk 0:00:00]} 52. Rdd7 {[%clk 0:00:22]} 1-0

[Event "December 12 Early 2023"]
[Site "https://www.chess.com"]
[Date "2023.12.12"]
[Round "6"]
[White "Chigaev, Maksim"]
[Black "Jaiveer Mahendru"]
[Result "1-0"]
[Board "48"]
[TimeControl "180+1"]
[WhiteFideId "4108116"]
[BlackFideId "25611151"]
[WhiteElo "2915"]
[BlackElo "2585"]
[WhiteTeam "ESP"]
[BlackTeam "IND"]
[WhiteClock "0:01:10"]
[BlackClock "0:00:05"]

1. d4 {[%clk 0:03:00]}  Nf6 {[%clk 0:02:59]} 2. c4 {[%clk 0:03:01]}  e6 {[%clk 0:02:58]} 3. g4 {[%clk 0:03:01]}  Nxg4 {[%clk 0:02:54]} 4. e4 {[%clk 0:03:01]}  Nh6 {[%clk 0:02:52]} 5. Nc3 {[%clk 0:02:59]}  b6 {[%clk 0:02:38]} 6. h4 {[%clk 0:02:56]}  Bb7 {[%clk 0:02:36]} 7. Nf3 {[%clk 0:02:53]}  Be7 {[%clk 0:02:34]} 8. Rg1 {[%clk 0:02:53]}  Kf8 {[%clk 0:02:26]} 9. Bxh6 {[%clk 0:02:42]}  gxh6 {[%clk 0:02:27]} 10. Qd2 {[%clk 0:02:43]}  Na6 {[%clk 0:02:09]} 11. Qxh6+ {[%clk 0:02:41]}  Ke8 {[%clk 0:02:09]} 12. O-O-O {[%clk 0:02:36]}  Nb4 {[%clk 0:02:07]} 13. a3 {[%clk 0:02:35]}  a5 {[%clk 0:02:07]} 14. Qf4 {[%clk 0:02:29]}  Na6 {[%clk 0:01:56]} 15. e5 {[%clk 0:02:23]}  d6 {[%clk 0:01:33]} 16. Rg7 {[%clk 0:02:22]}  Rf8 {[%clk 0:01:32]} 17. Ng5 {[%clk 0:02:19]}  Bxg5 {[%clk 0:01:17]} 18. hxg5 {[%clk 0:02:19]}  Qe7 {[%clk 0:01:10]} 19. Rxh7 {[%clk 0:02:16]}  Rg8 {[%clk 0:01:08]} 20. c5 {[%clk 0:01:48]}  dxc5 {[%clk 0:00:33]} 21. Bb5+ {[%clk 0:01:37]}  c6 {[%clk 0:00:32]} 22. Bxa6 {[%clk 0:01:36]}  Bxa6 {[%clk 0:00:33]} 23. dxc5 {[%clk 0:01:34]}  Rd8 {[%clk 0:00:21]} 24. Ne4 {[%clk 0:01:18]}  Rxd1+ {[%clk 0:00:19]} 25. Kxd1 {[%clk 0:01:18]}  Bd3 {[%clk 0:00:13]} 26. Nd6+ {[%clk 0:01:16]}  Kd8 {[%clk 0:00:10]} 27. Rxf7 {[%clk 0:01:09]}  Qxg5 {[%clk 0:00:05]} 28. Rf8+ {[%clk 0:01:10]} 1-0

[Event "December 12 Early 2023"]
[Site "https://www.chess.com"]
[Date "2023.12.12"]
[Round "6"]
[White "Durarbayli, Vasif"]
[Black "Bettalli, Francesco"]
[Result "1-0"]
[Board "49"]
[TimeControl "180+1"]
[WhiteFideId "13402935"]
[BlackFideId "2816453"]
[WhiteElo "2898"]
[BlackElo "2585"]
[WhiteTeam "AZE"]
[BlackTeam "ITA"]
[WhiteClock "0:01:42"]
[BlackClock "0:01:24"]

1. e4 {[%clk 0:03:00]}  e5 {[%clk 0:02:54]} 2. Nf3 {[%clk 0:03:01]}  Nf6 {[%clk 0:02:53]} 3. Nxe5 {[%clk 0:03:00]}  Nxe4 {[%clk 0:02:53]} 4. Qe2 {[%clk 0:03:00]}  Qe7 {[%clk 0:02:54]} 5. Qxe4 {[%clk 0:03:01]}  d6 {[%clk 0:02:54]} 6. d4 {[%clk 0:03:01]}  dxe5 {[%clk 0:02:54]} 7. dxe5 {[%clk 0:03:01]}  Nc6 {[%clk 0:02:55]} 8. Nc3 {[%clk 0:02:52]}  Qxe5 {[%clk 0:02:52]} 9. Bf4 {[%clk 0:02:37]}  Qxe4+ {[%clk 0:02:46]} 10. Nxe4 {[%clk 0:02:38]}  Bf5 {[%clk 0:02:47]} 11. Bd3 {[%clk 0:02:36]}  Nb4 {[%clk 0:02:40]} 12. Bxc7 {[%clk 0:02:32]}  Nxd3+ {[%clk 0:02:40]} 13. cxd3 {[%clk 0:02:33]}  Rc8 {[%clk 0:02:38]} 14. Be5 {[%clk 0:02:22]}  Rc2 {[%clk 0:02:31]} 15. Kd1 {[%clk 0:02:16]}  Rc6 {[%clk 0:02:22]} 16. Re1 {[%clk 0:02:13]}  Bb4 {[%clk 0:02:18]} 17. Bxg7 {[%clk 0:02:07]}  Bxe1 {[%clk 0:02:09]} 18. Bxh8 {[%clk 0:02:04]}  Bxe4 {[%clk 0:02:09]} 19. dxe4 {[%clk 0:02:03]}  Bxf2 {[%clk 0:02:09]} 20. Ke2 {[%clk 0:01:57]}  Bb6 {[%clk 0:02:08]} 21. Bc3 {[%clk 0:01:54]}  Rg6 {[%clk 0:02:00]} 22. Kf3 {[%clk 0:01:51]}  Kd7 {[%clk 0:01:59]} 23. Rd1+ {[%clk 0:01:50]}  Ke6 {[%clk 0:01:58]} 24. Rd5 {[%clk 0:01:48]}  Rg8 {[%clk 0:01:57]} 25. Rh5 {[%clk 0:01:47]}  Rd8 {[%clk 0:01:37]} 26. Rh6+ {[%clk 0:01:45]}  Kd7 {[%clk 0:01:32]} 27. Rxh7 {[%clk 0:01:46]}  Ke6 {[%clk 0:01:31]} 28. Rh6+ {[%clk 0:01:46]}  Kd7 {[%clk 0:01:32]} 29. h4 {[%clk 0:01:46]}  Rc8 {[%clk 0:01:30]} 30. h5 {[%clk 0:01:45]}  Ke7 {[%clk 0:01:31]} 31. Rh8 {[%clk 0:01:43]}  Rc6 {[%clk 0:01:24]} 32. h6 {[%clk 0:01:42]} 1-0

[Event "December 12 Early 2023"]
[Site "https://www.chess.com"]
[Date "2023.12.12"]
[Round "6"]
[White "Demchenko, Anton"]
[Black "Belov, Alexei"]
[Result "1-0"]
[Board "51"]
[TimeControl "180+1"]
[WhiteFideId "4160258"]
[BlackFideId "4128206"]
[WhiteElo "2878"]
[BlackElo "2581"]
[WhiteTeam "SLO"]
[BlackTeam "RUS"]
[WhiteClock "0:00:16"]
[BlackClock "0:00:02"]

1. e4 {[%clk 0:02:57]}  e6 {[%clk 0:02:59]} 2. d4 {[%clk 0:02:56]}  d5 {[%clk 0:03:00]} 3. Nd2 {[%clk 0:02:57]}  Nf6 {[%clk 0:03:00]} 4. e5 {[%clk 0:02:57]}  Ne4 {[%clk 0:03:00]} 5. Bd3 {[%clk 0:02:56]}  f5 {[%clk 0:03:00]} 6. exf6 {[%clk 0:02:50]}  Nxf6 {[%clk 0:02:59]} 7. Ngf3 {[%clk 0:02:46]}  c5 {[%clk 0:02:59]} 8. c3 {[%clk 0:02:45]}  Nc6 {[%clk 0:02:59]} 9. O-O {[%clk 0:02:46]}  Bd6 {[%clk 0:03:00]} 10. Re1 {[%clk 0:02:37]}  O-O {[%clk 0:02:56]} 11. Nf1 {[%clk 0:02:38]}  Qc7 {[%clk 0:02:49]} 12. Qe2 {[%clk 0:02:17]}  Bd7 {[%clk 0:02:48]} 13. Bg5 {[%clk 0:02:05]}  Rae8 {[%clk 0:02:43]} 14. Ne3 {[%clk 0:01:49]}  Ne4 {[%clk 0:02:30]} 15. Bh4 {[%clk 0:01:46]}  cxd4 {[%clk 0:02:17]} 16. cxd4 {[%clk 0:01:46]}  Rxf3 {[%clk 0:02:17]} 17. Qxf3 {[%clk 0:01:43]}  Nxd4 {[%clk 0:02:15]} 18. Qh5 {[%clk 0:01:31]}  g6 {[%clk 0:02:03]} 19. Qg4 {[%clk 0:01:27]}  Bxh2+ {[%clk 0:01:56]} 20. Kh1 {[%clk 0:01:27]}  Bc6 {[%clk 0:00:53]} 21. Qh3 {[%clk 0:01:20]}  Bf4 {[%clk 0:00:49]} 22. Bxe4 {[%clk 0:01:19]}  dxe4 {[%clk 0:00:48]} 23. Ng4 {[%clk 0:01:20]}  Be5 {[%clk 0:00:33]} 24. Bf6 {[%clk 0:01:16]}  Bxf6 {[%clk 0:00:17]} 25. Nxf6+ {[%clk 0:01:16]}  Kh8 {[%clk 0:00:17]} 26. Nxe8 {[%clk 0:01:13]}  Bxe8 {[%clk 0:00:18]} 27. Rxe4 {[%clk 0:01:12]}  e5 {[%clk 0:00:16]} 28. Rae1 {[%clk 0:01:09]}  Nc6 {[%clk 0:00:16]} 29. Qe6 {[%clk 0:01:03]}  Bf7 {[%clk 0:00:12]} 30. Qf6+ {[%clk 0:01:02]}  Kg8 {[%clk 0:00:13]} 31. a3 {[%clk 0:00:46]}  Bd5 {[%clk 0:00:12]} 32. R4e3 {[%clk 0:00:41]}  Qd7 {[%clk 0:00:12]} 33. f3 {[%clk 0:00:40]}  Bc4 {[%clk 0:00:07]} 34. Kg1 {[%clk 0:00:31]}  Qd4 {[%clk 0:00:06]} 35. b4 {[%clk 0:00:18]}  b5 {[%clk 0:00:02]} 36. Qxc6 {[%clk 0:00:16]} 1-0

[Event "December 12 Early 2023"]
[Site "https://www.chess.com"]
[Date "2023.12.12"]
[Round "6"]
[White "Corrales Jimenez, Fidel"]
[Black "Flores Quillas, Diego Saul Rodri"]
[Result "1-0"]
[Board "52"]
[TimeControl "180+1"]
[WhiteFideId "3506690"]
[BlackFideId "3822508"]
[WhiteElo "2841"]
[BlackElo "2576"]
[WhiteTeam "USA"]
[BlackTeam "PER"]
[WhiteClock "0:00:37"]
[BlackClock "0:00:01"]

1. e4 {[%clk 0:03:00]}  c5 {[%clk 0:02:58]} 2. b3 {[%clk 0:03:00]}  Nf6 {[%clk 0:02:56]} 3. Qf3 {[%clk 0:03:00]}  Nc6 {[%clk 0:02:39]} 4. Bb2 {[%clk 0:02:59]}  e5 {[%clk 0:02:37]} 5. Bc4 {[%clk 0:02:56]}  Be7 {[%clk 0:02:37]} 6. Ne2 {[%clk 0:02:55]}  O-O {[%clk 0:02:37]} 7. Nbc3 {[%clk 0:02:55]}  d6 {[%clk 0:02:38]} 8. h3 {[%clk 0:02:55]}  Be6 {[%clk 0:02:36]} 9. Nd5 {[%clk 0:02:54]}  Rb8 {[%clk 0:02:33]} 10. Nxf6+ {[%clk 0:02:51]}  Bxf6 {[%clk 0:02:33]} 11. Nc3 {[%clk 0:02:50]}  Nd4 {[%clk 0:02:30]} 12. Qd3 {[%clk 0:02:51]}  b5 {[%clk 0:02:02]} 13. Nxb5 {[%clk 0:02:45]}  d5 {[%clk 0:02:01]} 14. Nxd4 {[%clk 0:02:33]}  exd4 {[%clk 0:01:49]} 15. exd5 {[%clk 0:02:28]}  Bxd5 {[%clk 0:01:48]} 16. Bxd5 {[%clk 0:02:26]}  Qxd5 {[%clk 0:01:47]} 17. O-O {[%clk 0:02:24]}  h5 {[%clk 0:01:33]} 18. Rfe1 {[%clk 0:02:24]}  Rfe8 {[%clk 0:01:33]} 19. Kf1 {[%clk 0:02:19]}  h4 {[%clk 0:01:10]} 20. a4 {[%clk 0:02:10]}  Rxe1+ {[%clk 0:01:05]} 21. Rxe1 {[%clk 0:02:09]}  c4 {[%clk 0:01:05]} 22. bxc4 {[%clk 0:02:08]}  Qd6 {[%clk 0:01:03]} 23. Re4 {[%clk 0:01:43]}  Rd8 {[%clk 0:00:18]} 24. Qe2 {[%clk 0:01:27]}  g6 {[%clk 0:00:07]} 25. Re8+ {[%clk 0:01:26]}  Rxe8 {[%clk 0:00:06]} 26. Qxe8+ {[%clk 0:01:27]}  Kg7 {[%clk 0:00:06]} 27. Qe4 {[%clk 0:01:25]}  Qc5 {[%clk 0:00:04]} 28. Qd3 {[%clk 0:01:24]}  Qd6 {[%clk 0:00:02]} 29. Kg1 {[%clk 0:01:19]}  Qe5 {[%clk 0:00:03]} 30. Kf1 {[%clk 0:01:15]}  Qd6 {[%clk 0:00:02]} 31. Ba1 {[%clk 0:01:03]}  Qe5 {[%clk 0:00:01]} 32. f3 {[%clk 0:00:52]}  g5 {[%clk 0:00:01]} 33. c3 {[%clk 0:00:52]}  Qh2 {[%clk 0:00:01]} 34. cxd4 {[%clk 0:00:51]}  Qh1+ {[%clk 0:00:02]} 35. Kf2 {[%clk 0:00:48]}  Qxa1 {[%clk 0:00:03]} 36. d5 {[%clk 0:00:47]}  Qe5 {[%clk 0:00:03]} 37. Qe3 {[%clk 0:00:41]}  Qxe3+ {[%clk 0:00:02]} 38. Kxe3 {[%clk 0:00:40]}  Kf8 {[%clk 0:00:02]} 39. Ke4 {[%clk 0:00:39]}  Ke7 {[%clk 0:00:03]} 40. Kf5 {[%clk 0:00:38]}  a5 {[%clk 0:00:01]} 41. d6+ {[%clk 0:00:37]} 1-0

[Event "December 12 Early 2023"]
[Site "https://www.chess.com"]
[Date "2023.12.12"]
[Round "6"]
[White "Mikhailovsky, Vladimir"]
[Black "Shuvalov, Evgenij"]
[Result "0-1"]
[Board "53"]
[TimeControl "180+1"]
[WhiteFideId "34105414"]
[BlackFideId "4187237"]
[WhiteElo "2798"]
[BlackElo "2563"]
[WhiteTeam "RUS"]
[BlackTeam "FID"]
[WhiteClock "0:00:02"]
[BlackClock "0:00:14"]

1. e4 {[%clk 0:03:00]}  e6 {[%clk 0:02:59]} 2. d4 {[%clk 0:03:01]}  d5 {[%clk 0:02:59]} 3. Nc3 {[%clk 0:03:01]}  Bb4 {[%clk 0:02:58]} 4. a3 {[%clk 0:03:02]}  Bxc3+ {[%clk 0:02:58]} 5. bxc3 {[%clk 0:03:02]}  dxe4 {[%clk 0:02:59]} 6. Qg4 {[%clk 0:03:03]}  Nf6 {[%clk 0:02:59]} 7. Qxg7 {[%clk 0:03:03]}  Rg8 {[%clk 0:03:00]} 8. Qh6 {[%clk 0:03:03]}  c5 {[%clk 0:03:01]} 9. Ne2 {[%clk 0:03:03]}  cxd4 {[%clk 0:03:00]} 10. cxd4 {[%clk 0:03:00]}  Nc6 {[%clk 0:03:00]} 11. c3 {[%clk 0:02:53]}  Bd7 {[%clk 0:03:00]} 12. Ng3 {[%clk 0:02:51]}  Qe7 {[%clk 0:02:39]} 13. Be2 {[%clk 0:02:37]}  O-O-O {[%clk 0:02:37]} 14. a4 {[%clk 0:02:27]}  Rg6 {[%clk 0:02:23]} 15. Qh4 {[%clk 0:02:19]}  e5 {[%clk 0:02:14]} 16. Be3 {[%clk 0:01:44]}  exd4 {[%clk 0:02:12]} 17. cxd4 {[%clk 0:01:45]}  Qb4+ {[%clk 0:02:09]} 18. Kf1 {[%clk 0:01:40]}  Nxd4 {[%clk 0:01:54]} 19. Rc1+ {[%clk 0:00:44]}  Bc6 {[%clk 0:01:52]} 20. Bxd4 {[%clk 0:00:35]}  Qxd4 {[%clk 0:01:47]} 21. Nf5 {[%clk 0:00:33]}  Qe5 {[%clk 0:01:31]} 22. Ne3 {[%clk 0:00:29]}  Qb2 {[%clk 0:01:22]} 23. Re1 {[%clk 0:00:20]}  Nd5 {[%clk 0:01:12]} 24. Nxd5 {[%clk 0:00:06]}  Rxd5 {[%clk 0:01:00]} 25. Qxh7 {[%clk 0:00:06]}  Qf6 {[%clk 0:00:43]} 26. Qh3+ {[%clk 0:00:04]}  Kb8 {[%clk 0:00:42]} 27. Qe3 {[%clk 0:00:04]}  Rdg5 {[%clk 0:00:38]} 28. g3 {[%clk 0:00:04]}  Rf5 {[%clk 0:00:38]} 29. Kg1 {[%clk 0:00:03]}  Rg8 {[%clk 0:00:34]} 30. h4 {[%clk 0:00:03]}  Qe5 {[%clk 0:00:29]} 31. h5 {[%clk 0:00:02]}  Rfg5 {[%clk 0:00:17]} 32. Kf1 {[%clk 0:00:03]}  Rxg3 {[%clk 0:00:16]} 33. fxg3 {[%clk 0:00:03]}  Rxg3 {[%clk 0:00:16]} 34. Qf2 {[%clk 0:00:03]}  e3 {[%clk 0:00:15]} 35. Qxf7 {[%clk 0:00:03]}  Bg2+ {[%clk 0:00:15]} 36. Kg1 {[%clk 0:00:03]}  Bd5+ {[%clk 0:00:14]} 37. Kf1 {[%clk 0:00:03]}  Bxf7 {[%clk 0:00:14]} 38. Bf3 {[%clk 0:00:01]}  Rxf3+ {[%clk 0:00:14]} 39. Ke2 {[%clk 0:00:01]}  Rf2+ {[%clk 0:00:14]} 40. Kd3 {[%clk 0:00:01]}  Qd5+ {[%clk 0:00:13]} 41. Kxe3 {[%clk 0:00:01]}  Qd2+ {[%clk 0:00:13]} 42. Ke4 {[%clk 0:00:02]}  Rf4+ {[%clk 0:00:14]} 43. Ke5 {[%clk 0:00:02]}  Qd4# {[%clk 0:00:14]} 0-1

[Event "December 12 Early 2023"]
[Site "https://www.chess.com"]
[Date "2023.12.12"]
[Round "6"]
[White "Asish Panda"]
[Black "Gabrielian, Artur"]
[Result "1/2-1/2"]
[Board "55"]
[TimeControl "180+1"]
[WhiteFideId "45012458"]
[BlackFideId "4131002"]
[WhiteElo "2545"]
[BlackElo "2762"]
[WhiteTeam "IND"]
[BlackTeam "RUS"]
[WhiteClock "0:00:06"]
[BlackClock "0:00:41"]

1. e4 {[%clk 0:03:00]}  c5 {[%clk 0:02:59]} 2. Nf3 {[%clk 0:03:00]}  d6 {[%clk 0:02:59]} 3. d4 {[%clk 0:03:00]}  cxd4 {[%clk 0:02:59]} 4. Qxd4 {[%clk 0:03:01]}  Nc6 {[%clk 0:02:59]} 5. Bb5 {[%clk 0:02:58]}  Bd7 {[%clk 0:02:58]} 6. Bxc6 {[%clk 0:02:58]}  Bxc6 {[%clk 0:02:58]} 7. c4 {[%clk 0:02:58]}  Nf6 {[%clk 0:02:57]} 8. Nc3 {[%clk 0:02:58]}  g6 {[%clk 0:02:57]} 9. Bg5 {[%clk 0:02:57]}  Bg7 {[%clk 0:02:58]} 10. Qd3 {[%clk 0:02:56]}  O-O {[%clk 0:02:57]} 11. O-O {[%clk 0:02:55]}  a6 {[%clk 0:02:56]} 12. Rad1 {[%clk 0:02:51]}  b5 {[%clk 0:02:55]} 13. cxb5 {[%clk 0:02:43]}  axb5 {[%clk 0:02:55]} 14. Nd4 {[%clk 0:02:43]}  Bd7 {[%clk 0:02:51]} 15. Ndxb5 {[%clk 0:02:36]}  Qa5 {[%clk 0:02:50]} 16. a4 {[%clk 0:02:08]}  Bc6 {[%clk 0:02:47]} 17. Rfe1 {[%clk 0:01:59]}  Rfb8 {[%clk 0:02:41]} 18. e5 {[%clk 0:01:40]}  dxe5 {[%clk 0:02:37]} 19. Rxe5 {[%clk 0:01:38]}  Qb4 {[%clk 0:02:38]} 20. Re2 {[%clk 0:01:23]}  h6 {[%clk 0:02:31]} 21. Bd2 {[%clk 0:01:16]}  Rd8 {[%clk 0:02:19]} 22. Qe3 {[%clk 0:00:44]}  Rxa4 {[%clk 0:01:50]} 23. Nxa4 {[%clk 0:00:37]}  Qxa4 {[%clk 0:01:48]} 24. Nc3 {[%clk 0:00:33]}  Qg4 {[%clk 0:01:46]} 25. f3 {[%clk 0:00:31]}  Qc4 {[%clk 0:01:43]} 26. Rde1 {[%clk 0:00:18]}  e6 {[%clk 0:01:23]} 27. Qf4 {[%clk 0:00:16]}  Rd4 {[%clk 0:01:11]} 28. Qb8+ {[%clk 0:00:16]}  Kh7 {[%clk 0:01:11]} 29. Be3 {[%clk 0:00:13]}  Rd3 {[%clk 0:01:11]} 30. Qc7 {[%clk 0:00:13]}  Kg8 {[%clk 0:01:05]} 31. Qc8+ {[%clk 0:00:12]}  Kh7 {[%clk 0:00:59]} 32. Qc7 {[%clk 0:00:13]}  e5 {[%clk 0:00:59]} 33. Bf2 {[%clk 0:00:08]}  e4 {[%clk 0:00:57]} 34. Nxe4 {[%clk 0:00:07]}  Nxe4 {[%clk 0:00:57]} 35. Rxe4 {[%clk 0:00:07]}  Qd5 {[%clk 0:00:55]} 36. Re7 {[%clk 0:00:06]}  Rxf3 {[%clk 0:00:55]} 37. gxf3 {[%clk 0:00:05]}  Qxf3 {[%clk 0:00:55]} 38. Kf1 {[%clk 0:00:05]}  Qg2+ {[%clk 0:00:52]} 39. Ke2 {[%clk 0:00:05]}  Qf3+ {[%clk 0:00:50]} 40. Kf1 {[%clk 0:00:06]}  Qh3+ {[%clk 0:00:50]} 41. Ke2 {[%clk 0:00:06]}  Qf3+ {[%clk 0:00:41]} 42. Kf1 {[%clk 0:00:06]} 1/2-1/2